bitfinex/quotes_ETHUSD_20250129
["timestamp","ask_amount","ask_price","bid_price","bid_amount"]
[1738180997077,3.22078,3104.9,3104.7,0.03524997]
[1738180997281,3.21958,3106.0,3104.7,0.03524997]
[1738180997521,3.2,3106.8,3104.6,0.8281]
[1738180997522,3.22041,3105.2,3104.6,0.8281]
[1738180997816,3.221,3104.7,3104.5,0.4109095]
[1738180997981,3.22102,3104.6,3104.5,0.4109095]
[1738180998925,3.22102,3104.6,3104.5,0.44680366]
[1738180999228,3.21998,3105.6,3104.5,0.44680366]
[1738180999426,3.22051,3105.1,3104.5,3.6320195]
[1738180999738,3.22061,3105.0,3104.6,0.03587124]
[1738180999937,3.22083,3104.8,3104.6,0.03587124]
[1738181000076,3.22092,3104.7,3104.6,0.03587124]
[1738181000441,3.22092,3104.7,3104.5,0.4109095]
[1738181000442,3.77102,3104.6,3104.5,9.5e-06]
[1738181000745,6.77102,3104.6,3104.5,9.5e-06]
[1738181000880,3.22283,3102.9,3102.2,3.22351]
[1738181001081,3.22283,3102.9,3102.3,0.03211618]
[1738181001318,3.22259,3103.1,3102.2,3.22347]
[1738181001638,3.22202,3103.7,3102.9,3.22271]
[1738181001967,3.22167,3104.0,3103.2,3.12238]
[1738181002172,3.22066,3105.0,3104.0,0.0075]
[1738181002173,3.22083,3104.8,3104.0,0.0075]
[1738181002303,3.22023,3105.4,3103.9,3.22171]
[1738181002510,3.22099,3104.7,3104.0,0.0329291]
[1738181002742,3.22101,3104.7,3104.0,0.35839301]
[1738181002950,3.22035,3105.3,3104.0,0.0329291]
[1738181002951,3.2205,3105.1,3104.0,0.0329291]
[1738181003276,3.22152,3104.2,3103.6,0.7545]
[1738181003483,3.2205,3105.1,3103.7,0.04069035]
[1738181003759,3.21998,3105.7,3103.7,0.04069035]
[1738181003760,0.7735,3106.0,3104.5,0.0075]
[1738181003965,1.68420064,3109.3,3104.4,0.8283]
[1738181003966,3.22018,3105.5,3104.7,3.22091]
[1738181004250,3.21923,3106.4,3105.8,0.7827]
[1738181004406,3.21939,3106.2,3105.9,0.02919063]
[1738181004605,3.21957,3106.0,3105.9,0.02919063]
[1738181005118,3.21957,3106.0,3105.2,3.22781]
[1738181005119,3.2203,3105.3,3105.2,0.8155]
[1738181005364,3.22007,3105.6,3105.2,0.0318846]
[1738181005543,3.21899,3106.6,3105.2,0.0318846]
[1738181005846,3.22009,3105.5,3105.3,0.03179759]
[1738181006045,3.22009,3105.5,3104.6,0.7642]
[1738181006217,3.22009,3105.5,3103.5,0.7556]
[1738181006419,3.22062,3105.0,3103.8,3.0]
[1738181006750,3.2202,3105.4,3104.3,0.7556]
[1738181006972,3.21925,3106.4,3104.7,0.0075]
[1738181007145,3.22074,3104.9,3104.4,0.03246587]
[1738181007310,0.7504,3106.5,3105.1,3.22047]
[1738181007311,3.21986,3105.8,3105.1,3.22047]
[1738181007512,0.7504,3106.5,3105.1,3.22047]
[1738181007513,3.96948,3106.5,3105.2,0.03180904]
[1738181007721,3.21948,3106.1,3105.4,3.2201]
[1738181007924,3.21948,3106.1,3105.5,0.03396066]
[1738181008162,3.21864,3106.9,3105.5,0.03396066]
[1738181008365,3.21945,3106.2,3105.5,0.03396066]
[1738181008671,3.21987,3105.8,3105.5,0.03396066]
[1738181008811,3.21987,3105.8,3105.1,0.7659]
[1738181009011,3.21989,3105.7,3105.2,0.03169737]
[1738181009211,3.22001,3105.6,3105.2,0.03169737]
[1738181009507,0.55,3106.2,3105.3,0.0075]
[1738181009508,3.21941,3106.2,3105.3,0.0075]
[1738181009742,0.7756,3107.0,3105.5,0.0075]
[1738181009958,3.21959,3106.0,3105.4,3.25163126]
[1738181010175,3.21896,3106.6,3105.1,3.7659]
[1738181010457,3.21896,3106.6,3104.2,1.2587275]
[1738181010458,0.55,3106.1,3104.2,1.2587275]
[1738181010608,3.22027,3105.4,3104.7,3.22084]
[1738181010808,3.22027,3105.4,3104.6,3.22845]
[1738181011015,3.21961,3106.0,3105.1,0.0075]
[1738181011248,6.21865,3106.9,3105.7,0.7815]
[1738181011249,3.21939,3106.2,3105.7,0.7815]
[1738181011710,3.21917,3106.4,3105.8,3.21976]
[1738181011910,3.21855,3107.0,3106.0,0.0075]
[1738181012159,3.21819,3107.4,3106.7,3.21884]
[1738181012349,2.32,3108.4,3107.3,3.21818]
[1738181012350,3.21708,3108.4,3107.3,3.21818]
[1738181012675,3.21754,3108.0,3107.1,0.0075]
[1738181012832,3.21731,3108.2,3107.5,3.218]
[1738181013038,3.21731,3108.2,3107.5,3.21801]
[1738181013357,0.7847,3109.4,3107.7,0.8067]
[1738181013669,1.49442499,3109.7,3108.0,7.2417]
[1738181013670,0.85172913,3109.7,3108.0,7.2417]
[1738181013813,0.85172913,3109.7,3109.2,3.21615]
[1738181014014,0.85172913,3109.7,3109.1,0.8067]
[1738181014219,3.21534,3110.1,3109.3,3.21614]
[1738181014467,3.21534,3110.1,3109.1,4.02305]
[1738181014763,3.0,3110.8,3109.1,0.8067]
[1738181014967,3.2156,3109.9,3109.1,0.8067]
[1738181015168,3.21557,3109.9,3109.1,4.02305]
[1738181015366,3.21534,3110.1,3109.2,3.21618]
[1738181015514,3.2145,3110.9,3109.1,0.8067]
[1738181015720,3.2145,3110.9,3109.4,3.21602]
[1738181016049,3.2145,3110.9,3109.1,0.8067]
[1738181016253,0.7709,3111.0,3109.1,0.8067]
[1738181016254,3.21526,3110.2,3109.5,3.0]
[1738181016437,3.2146,3110.8,3109.1,0.8067]
[1738181016609,3.21615,3109.4,3109.1,0.8067]
[1738181016812,3.21615,3109.4,3108.5,3.2169]
[1738181016813,3.7574,3110.0,3108.5,0.8248]
[1738181017029,3.7574,3110.0,3107.0,4.20115863]
[1738181017030,3.0,3109.7,3107.8,3.21762]
[1738181017365,3.21716,3108.4,3107.7,0.8248]
[1738181017558,0.55,3109.3,3107.7,0.8248]
[1738181017716,3.21704,3108.5,3107.7,4.0426]
[1738181018054,3.2174,3108.1,3107.7,0.8248]
[1738181018254,3.21746,3108.1,3107.1,0.7798]
[1738181018429,0.55,3108.8,3107.1,0.7798]
[1738181018430,3.21667,3108.8,3107.1,0.7798]
[1738181018632,3.21667,3108.8,3107.5,3.21793]
[1738181018835,3.21696,3108.6,3107.8,3.21769]
[1738181019062,3.0,3109.2,3107.1,0.7798]
[1738181019246,3.21771,3107.8,3107.1,0.7798]
[1738181019561,0.55,3108.8,3107.1,0.7798]
[1738181019732,3.21788,3107.7,3107.1,0.7798]
[1738181019936,0.7674,3108.7,3107.1,1.179634]
[1738181020262,3.21618,3109.3,3107.1,1.179634]
[1738181020263,3.21701,3108.5,3107.7,3.2178]
[1738181020556,3.21653,3109.0,3107.3,3.0]
[1738181020557,3.21749,3108.1,3107.3,3.0]
[1738181020763,3.97963,3109.3,3107.2,3.0]
[1738181020978,0.1,3110.4,3107.7,0.0075]
[1738181020979,3.21645,3109.1,3107.7,0.0075]
[1738181021119,3.21645,3109.1,3108.4,3.21699]
[1738181021327,3.2164,3109.1,3108.5,0.7933]
[1738181021642,3.21696,3108.6,3107.9,4.0109]
[1738181021843,3.21584,3109.6,3107.9,0.7933]
[1738181021844,6.4319,3109.5,3107.9,0.7933]
[1738181022162,3.21784,3107.7,3107.3,0.7933]
[1738181022346,3.21724,3108.3,3107.5,3.21793]
[1738181022537,3.21748,3108.1,3107.4,3.2181]
[1738181022854,3.21719,3108.3,3107.6,3.21791]
[1738181023057,3.2173,3108.2,3107.3,0.7933]
[1738181023261,3.21762,3107.9,3107.3,0.7933]
[1738181023460,3.21729,3108.2,3107.3,4.01152]
[1738181023781,0.7934,3109.1,3107.3,0.7933]
[1738181024063,6.43553,3107.8,3107.3,0.7933]
[1738181024218,3.21676,3108.8,3107.3,0.7933]
[1738181024420,3.21847,3107.1,3106.6,0.7852]
[1738181024621,3.21947,3106.1,3105.9,0.7852]
[1738181024858,3.5575,3107.6,3104.6,0.7852]
[1738181025161,3.5575,3107.6,3105.3,0.7852]
[1738181025162,0.55,3106.6,3105.3,0.7852]
[1738181025459,3.22062,3105.0,3104.4,4.04142]
[1738181025768,3.22052,3105.1,3104.5,0.03615556]
[1738181025938,3.22061,3105.0,3104.5,0.03615556]
[1738181026345,3.22072,3104.9,3104.5,0.03615556]
[1738181026661,0.8288,3106.0,3104.5,0.03615556]
[1738181026662,3.22102,3104.6,3104.5,0.03615556]
[1738181026862,3.22062,3105.0,3104.5,0.03615556]
[1738181027064,3.22062,3105.0,3104.4,0.8202]
[1738181027065,3.22051,3105.1,3104.4,4.04142]
[1738181027280,3.22103,3104.6,3104.5,0.03640073]
[1738181027925,3.22102,3104.6,3104.5,0.03640073]
[1738181028125,3.22102,3104.6,3103.8,0.7844]
[1738181028126,3.22102,3104.6,3103.9,3.2217]
[1738181028325,3.22102,3104.6,3104.0,0.03267628]
[1738181028893,3.22138,3104.3,3104.0,0.03267628]
[1738181029043,3.22142,3104.3,3103.8,0.7844]
[1738181029365,0.7587,3105.0,3103.8,0.7844]
[1738181029366,3.22092,3104.7,3103.8,0.7844]
[1738181029528,3.22197,3103.7,3103.1,0.757]
[1738181029731,3.2212,3104.5,3103.7,3.22191]
[1738181029925,3.2212,3104.5,3103.8,3.25462044]
[1738181030126,3.0,3105.0,3103.8,0.03285044]
[1738181030326,3.22186,3103.8,3103.2,3.22244]
[1738181030564,3.22186,3103.8,3103.3,0.03254465]
[1738181030732,3.22227,3103.4,3103.3,0.03254465]
[1738181030932,0.7891,3104.3,3102.6,0.7916]
[1738181031197,3.22177,3103.9,3103.1,3.22248]
[1738181031464,0.7891,3104.8,3102.8,0.0075]
[1738181031465,3.22166,3104.0,3102.8,0.7885]
[1738181031670,3.22237,3103.3,3103.2,0.04017435]
[1738181031887,3.22145,3104.2,3102.8,0.7885]
[1738181031888,3.22279,3102.9,3102.8,0.7885]
[1738181032163,3.22238,3103.3,3102.4,4.01179]
[1738181032363,3.22238,3103.3,3102.5,3.22311]
[1738181032569,3.22238,3103.3,3102.5,3.25798184]
[1738181032768,3.22238,3103.3,3102.6,3.2231]
[1738181033068,0.8095,3103.8,3102.7,3.22299]
[1738181033268,0.8095,3103.8,3102.7,0.03460413]
[1738181033442,3.2222,3103.5,3102.7,0.03460413]
[1738181033769,0.7564,3104.4,3102.8,0.03451028]
[1738181034071,3.22227,3103.4,3102.8,3.25740028]
[1738181034270,0.7564,3104.4,3102.8,0.03451028]
[1738181034567,0.7564,3104.4,3102.4,1.189679]
[1738181034568,0.8198,3103.4,3102.6,3.22309]
[1738181034769,3.22267,3103.1,3101.9,1.44921777]
[1738181034969,3.22237,3103.3,3102.7,0.03755286]
[1738181035175,3.22249,3103.2,3102.3,3.0]
[1738181035333,0.8024,3104.0,3102.8,0.03210102]
[1738181035334,3.22212,3103.6,3102.8,0.03210102]
[1738181035532,0.8024,3104.0,3102.0,0.0075]
[1738181035533,3.22236,3103.4,3102.6,3.22309]
[1738181035737,3.22236,3103.4,3102.7,0.03218816]
[1738181036142,3.22276,3103.0,3102.7,0.03218816]
[1738181036346,3.22351,3102.2,3102.1,0.005]
[1738181036546,6.44578,3102.8,3102.1,0.005]
[1738181036776,3.22424,3101.5,3100.2,0.8268]
[1738181036976,4.03624,3101.5,3101.4,9.5e-06]
[1738181037274,3.22424,3101.5,3101.4,9.5e-06]
[1738181038538,7.59264,3101.5,3101.4,9.5e-06]
[1738181038970,3.2262,3099.7,3099.3,0.7878]
[1738181039180,3.22445,3101.3,3099.3,0.7878]
[1738181039181,3.22643,3099.4,3099.3,0.7878]
[1738181039489,3.22466,3101.1,3098.7,0.63049644]
[1738181039490,3.22541,3100.4,3098.9,3.22687]
[1738181039696,3.22557,3100.3,3099.4,3.22635]
[1738181040057,3.22641,3099.5,3099.1,0.8252]
[1738181040254,0.55,3099.7,3098.4,0.8252]
[1738181040505,0.55,3099.7,3098.3,0.1609095]
[1738181040506,3.22747,3098.4,3098.3,0.1609095]
[1738181040883,3.22707,3098.8,3098.3,0.1609095]
[1738181041067,3.22721,3098.7,3098.3,0.1609095]
[1738181041277,3.2269,3099.0,3098.3,0.1609095]
[1738181041476,0.8188,3099.7,3098.3,0.1609095]
[1738181041686,3.22631,3099.6,3098.4,3.22747]
[1738181041960,3.22673,3099.2,3098.5,0.33883795]
[1738181042319,3.98605,3100.8,3098.9,0.7961]
[1738181042518,3.98605,3100.8,3099.4,3.22642]
[1738181042519,0.761,3100.8,3099.4,3.22642]
[1738181042676,0.761,3101.3,3099.4,0.7961]
[1738181042887,3.22489,3100.9,3099.6,3.0]
[1738181043177,0.761,3101.8,3099.7,0.622632]
[1738181043178,3.22543,3100.4,3099.7,0.622632]
[1738181043396,0.761,3101.8,3099.7,0.622632]
[1738181043645,0.761,3101.8,3099.4,0.7961]
[1738181043924,4.03138,3102.3,3100.8,3.2249]
[1738181044224,4.03138,3102.3,3100.9,4.05316]
[1738181044225,3.22396,3101.8,3100.9,4.05316]
[1738181044380,3.22396,3101.8,3101.1,3.22463]
[1738181044566,3.22364,3102.1,3100.9,0.8283]
[1738181044765,3.22456,3101.2,3100.2,0.8283]
[1738181045090,3.22464,3101.2,3100.3,0.04225542]
[1738181045262,3.22367,3102.1,3101.1,3.22464]
[1738181045461,0.7533,3103.1,3101.3,4.04313]
[1738181045664,0.7533,3103.1,3102.1,3.22357]
[1738181045967,3.22259,3103.1,3102.4,4.00038]
[1738181046180,3.22206,3103.6,3102.4,0.7771]
[1738181046380,3.22299,3102.8,3101.9,0.7771]
[1738181046719,1.390283,3104.4,3101.3,6.22439]
[1738181046720,4.01218,3104.3,3101.8,0.7713]
[1738181046919,0.7908,3104.3,3103.6,3.22203]
[1738181047129,3.22154,3104.2,3103.2,3.99375]
[1738181047274,3.22081,3104.8,3103.2,0.7713]
[1738181047633,0.7908,3104.9,3103.2,0.7713]
[1738181047924,0.7908,3105.6,3103.6,3.222]
[1738181048070,3.22047,3105.2,3103.7,0.7714]
[1738181048278,3.22064,3105.0,3104.3,3.22131]
[1738181048476,3.21904,3106.6,3103.9,3.0]
[1738181048824,3.21891,3106.7,3105.2,0.7817]
[1738181049005,9.65622,3106.8,3105.2,0.7817]
[1738181049185,3.21895,3106.6,3105.2,0.7817]
[1738181049368,3.22009,3105.5,3105.2,0.7817]
[1738181049571,3.21895,3106.6,3105.2,0.7817]
[1738181049925,0.7529,3106.9,3104.0,0.7647]
[1738181049926,3.22154,3104.1,3104.0,0.7647]
[1738181050112,3.22282,3102.9,3102.0,0.7647]
[1738181050276,3.22302,3102.7,3102.0,0.7647]
[1738181050473,3.22313,3102.6,3102.0,0.7647]
[1738181050670,3.22239,3103.3,3102.0,0.7647]
[1738181050920,3.22307,3102.7,3102.0,0.7647]
[1738181051127,3.22246,3103.3,3102.0,0.7647]
[1738181051128,0.55,3103.6,3102.0,0.7647]
[1738181051271,0.55,3103.6,3100.3,0.7647]
[1738181051272,3.22424,3101.6,3100.3,0.7647]
[1738181051471,6.44454,3103.4,3100.7,3.22505]
[1738181051472,3.22403,3101.8,3100.7,3.22505]
[1738181051671,0.7727,3103.6,3100.7,3.225]
[1738181051871,0.7727,3103.6,3100.3,1.41263617]
[1738181051872,3.22388,3101.9,3101.2,0.7636]
[1738181052087,3.7727,3103.6,3100.3,0.64793617]
[1738181052088,3.22476,3101.1,3100.4,0.7636]
[1738181052287,3.22383,3101.9,3100.5,0.05282931]
[1738181052529,3.22501,3100.8,3100.4,0.7636]
[1738181052833,3.22528,3100.5,3100.4,0.7636]
[1738181053133,3.22488,3100.9,3100.4,0.7636]
[1738181053457,3.22528,3100.6,3099.8,3.22599]
[1738181053739,3.22499,3100.8,3099.9,0.04299667]
[1738181053899,3.22573,3100.1,3099.1,6.22674]
[1738181054242,3.22595,3099.9,3099.2,0.04385246]
[1738181054556,0.55,3101.0,3099.0,0.7837]
[1738181054557,3.22653,3099.3,3099.0,0.7837]
[1738181054693,3.22523,3100.6,3099.0,0.7837]
[1738181054694,3.0,3100.9,3099.1,0.0434369]
[1738181054902,3.22518,3100.6,3099.1,0.0434369]
[1738181055211,3.22663,3099.2,3099.1,0.0434369]
[1738181055638,3.22662,3099.3,3098.5,3.22736]
[1738181055800,3.22625,3099.6,3098.7,3.22709]
[1738181056000,3.2265,3099.4,3098.6,0.0341486]
[1738181056227,3.2265,3099.4,3098.8,0.03423987]
[1738181056430,3.2265,3099.4,3098.4,4.03509]
[1738181056431,0.7672,3101.1,3098.7,0.03433397]
[1738181056661,0.7672,3101.1,3099.0,3.23434]
[1738181056958,0.7672,3101.1,3099.1,0.36362452]
[1738181057137,3.22487,3100.9,3099.3,3.2265]
[1738181057296,0.79,3101.7,3099.6,3.0]
[1738181057496,0.8332,3102.4,3099.9,0.8044]
[1738181057693,0.2,3102.1,3100.0,0.03427406]
[1738181057911,0.2,3102.1,3098.7,0.1]
[1738181057912,3.2257,3100.1,3099.3,0.9969]
[1738181058141,3.22572,3100.1,3099.3,0.9969]
[1738181058361,0.8332,3101.1,3099.3,0.9969]
[1738181058362,3.22601,3099.8,3099.3,0.9969]
[1738181058570,0.8332,3101.1,3099.3,0.9969]
[1738181058571,3.22624,3099.6,3099.3,0.9969]
[1738181058859,3.22476,3101.0,3099.3,0.9969]
[1738181058860,3.22446,3101.3,3099.6,0.2]
[1738181059037,3.22543,3100.4,3100.0,0.2]
[1738181059207,3.22493,3100.9,3100.1,0.7969]
[1738181059400,3.22449,3101.3,3100.5,3.22527]
[1738181059710,3.22544,3100.4,3100.2,0.2]
[1738181059910,9.67272,3101.5,3100.1,0.7969]
[1738181060116,3.22478,3101.0,3100.3,0.2]
[1738181060309,3.22478,3101.0,3100.5,0.2]
[1738181060515,3.22478,3101.0,3100.7,0.2]
[1738181060712,3.22457,3101.2,3100.7,0.2]
[1738181060910,3.22341,3102.4,3099.9,0.2]
[1738181060911,0.1,3102.3,3099.9,0.2]
[1738181061140,3.22311,3102.6,3100.4,0.2]
[1738181061441,0.16447857,3102.3,3101.1,0.2]
[1738181061740,3.22427,3101.5,3100.9,0.2]
[1738181061939,0.82,3104.0,3101.6,0.2]
[1738181062139,0.82,3104.0,3100.6,3.0]
[1738181062140,3.22314,3102.6,3102.0,0.2]
[1738181062344,3.22185,3103.8,3101.7,0.7859]
[1738181062345,3.22307,3102.7,3102.2,0.2]
[1738181062548,3.22185,3103.8,3101.9,0.2]
[1738181062702,3.2231,3102.6,3101.4,0.2]
[1738181062910,3.2231,3102.6,3101.0,0.777]
[1738181062911,3.2241,3101.7,3101.1,0.2]
[1738181063107,3.2241,3101.7,3099.5,0.1]
[1738181063108,3.0,3101.9,3100.3,0.777]
[1738181063321,3.22611,3099.7,3099.6,0.79499152]
[1738181063616,0.8191,3100.4,3098.3,0.1609095]
[1738181063814,3.22069091,3098.4,3098.3,0.1609095]
[1738181065947,3.22069091,3098.4,3098.3,9.5e-06]
[1738181066150,3.77069091,3098.4,3098.3,9.5e-06]
[1738181066345,3.22069091,3098.4,3098.3,9.5e-06]
[1738181066719,3.22069091,3098.4,3096.2,0.8069]
[1738181066720,0.5575,3097.8,3095.6,0.2]
[1738181066919,0.5575,3097.8,3095.5,1.03714871]
[1738181066920,3.22989,3096.1,3095.9,0.2]
[1738181067246,3.22986,3096.2,3095.6,0.2]
[1738181067445,0.8168,3096.8,3095.9,0.05]
[1738181067757,2.0,3099.0,3095.5,1.03714871]
[1738181067758,3.2295,3096.5,3096.4,0.05]
[1738181067921,0.8168,3097.6,3095.5,1.03714871]
[1738181067922,3.22956,3096.4,3095.9,0.05]
[1738181068125,0.8168,3097.6,3095.9,0.05]
[1738181068126,3.22841,3097.5,3095.9,0.05]
[1738181068361,3.22948,3096.5,3096.4,0.05]
[1738181068581,0.8168,3097.6,3095.5,4.26763871]
[1738181068582,0.8168,3098.3,3097.0,0.05]
[1738181068859,0.8168,3098.3,3097.3,0.05]
[1738181068860,3.22858,3097.4,3097.3,0.05]
[1738181069002,4.04446,3098.3,3097.3,0.05]
[1738181069207,4.04446,3098.3,3097.0,0.05]
[1738181069208,0.8168,3098.3,3097.0,0.05]
[1738181069403,0.8168,3098.3,3096.8,0.05]
[1738181069404,3.22893,3097.0,3096.8,0.05]
[1738181069659,0.8168,3098.3,3097.0,0.05]
[1738181069861,3.22823,3097.7,3097.2,0.05]
[1738181070005,3.2283,3097.6,3097.5,0.05]
[1738181070211,3.22854,3097.4,3097.3,0.05]
[1738181070413,3.22872,3097.2,3097.1,0.05]
[1738181070666,0.8168,3098.3,3097.1,0.05]
[1738181070667,3.22768,3098.2,3097.1,0.05]
[1738181070947,3.22768,3098.2,3097.3,3.22861]
[1738181070948,3.22793,3098.0,3097.3,3.22861]
[1738181071159,3.22809,3097.8,3097.4,0.05]
[1738181071338,3.22809,3097.8,3097.7,0.05]
[1738181071709,3.22788,3098.0,3097.7,0.05]
[1738181071945,0.7556,3098.9,3097.9,0.05]
[1738181072146,3.22671,3099.2,3097.9,3.27795]
[1738181072347,3.2272,3098.7,3098.1,0.05]
[1738181072645,3.22641,3099.5,3098.8,0.05]
[1738181072952,0.7708,3101.2,3099.3,0.05]
[1738181073122,3.22643,3099.4,3099.3,0.05]
[1738181073322,3.22571,3100.1,3099.0,0.8207]
[1738181073323,3.22668,3099.2,3099.0,0.8207]
[1738181073734,3.99221,3100.1,3098.6,0.05]
[1738181073956,3.99221,3100.1,3097.6,0.05]
[1738181073957,3.22799,3097.9,3097.6,0.05]
[1738181074281,3.22674,3099.1,3096.7,0.864]
[1738181074282,3.22865,3097.3,3096.7,0.864]
[1738181074414,0.7665,3098.7,3096.7,0.864]
[1738181074415,3.22849,3097.5,3097.1,0.05]
[1738181074609,3.22843,3097.5,3097.1,0.05]
[1738181074830,3.7665,3098.7,3097.1,0.05]
[1738181074831,3.22833,3097.6,3097.1,0.05]
[1738181075049,3.22736,3098.5,3096.9,0.05]
[1738181075255,3.22736,3098.5,3095.8,3.0]
[1738181075256,6.45576,3098.0,3096.5,0.05]
[1738181075422,3.22903,3097.0,3096.5,0.05]
[1738181075623,3.22903,3096.9,3096.7,0.05]
[1738181075954,3.22934,3096.6,3096.2,0.864]
[1738181076149,3.22913,3096.8,3096.4,0.05]
[1738181076354,3.22906,3096.9,3096.7,0.05]
[1738181076538,3.22799,3097.9,3096.2,0.05]
[1738181076539,3.2284,3097.6,3096.2,0.05]
[1738181076747,3.22966,3096.3,3095.8,0.05]
[1738181076957,0.829,3097.5,3095.5,0.23024871]
[1738181076958,6.45702,3097.4,3095.5,0.23024871]
[1738181077152,3.22944,3096.6,3095.5,0.23024871]
[1738181077462,3.23039,3095.6,3095.5,0.23024871]
[1738181078693,3.23026,3095.8,3095.5,0.23024871]
[1738181078831,3.22913,3096.9,3095.5,0.23024871]
[1738181078832,3.23007,3095.9,3095.5,0.23024871]
[1738181079192,3.22979,3096.2,3095.7,0.05]
[1738181079364,3.22924,3096.7,3096.3,0.05]
[1738181079526,0.7783,3097.7,3096.2,0.05]
[1738181079730,0.7783,3097.7,3095.7,0.8051]
[1738181079731,3.22995,3096.1,3095.8,0.05]
[1738181080087,0.7783,3097.7,3095.7,0.8051]
[1738181080088,3.22882,3097.1,3096.0,0.05]
[1738181080384,3.551862,3097.0,3096.0,0.05]
[1738181080545,3.22986,3096.1,3096.0,0.05]
[1738181080785,3.22853,3097.4,3095.5,0.23024871]
[1738181080786,3.22903,3096.9,3095.6,0.05]
[1738181080956,3.2303,3095.7,3095.5,0.23024871]
[1738181081157,3.23009,3095.9,3095.6,0.05]
[1738181081366,3.23009,3095.9,3095.5,0.23024871]
[1738181081367,3.23007,3095.9,3095.8,0.05]
[1738181081777,3.23007,3095.9,3095.6,0.05]
[1738181081778,3.23028,3095.7,3095.6,0.05]
[1738181081979,3.22903,3096.9,3095.7,0.05]
[1738181082183,3.23018,3095.8,3095.7,0.05]
[1738181082460,3.23039,3095.6,3095.5,0.23024871]
[1738181082660,3.23039,3095.6,3095.5,0.28024871]
[1738181083274,3.23039,3095.6,3095.5,0.23024871]
[1738181083450,3.23039,3095.6,3095.2,0.1609095]
[1738181083451,3.23039,3095.6,3095.2,8.21e-06]
[1738181083650,3.2307,3095.3,3095.2,8.21e-06]
[1738181085068,3.2308,3095.2,3095.1,4.88e-06]
[1738181085453,3.23064,3095.4,3095.2,0.05]
[1738181085654,3.2307,3095.3,3095.2,0.05]
[1738181085861,0.7814,3096.4,3095.3,0.0324103]
[1738181086035,0.7814,3096.4,3095.2,0.05]
[1738181086036,3.2307,3095.3,3095.2,0.03241889]
[1738181086236,3.22966,3096.3,3095.3,0.05]
[1738181086442,3.22932,3096.7,3095.1,4.88e-06]
[1738181086443,3.2308,3095.2,3095.1,4.88e-06]
[1738181087232,3.22966,3096.3,3095.2,0.05]
[1738181087469,3.2307,3095.3,3095.2,0.05]
[1738181088379,3.2307,3095.3,3095.1,4.88e-06]
[1738181088380,3.2308,3095.2,3095.1,4.88e-06]
[1738181089189,3.7808,3095.2,3095.1,4.88e-06]
[1738181089362,3.2308,3095.2,3095.1,4.88e-06]
[1738181090980,4.035,3095.2,3095.1,4.88e-06]
[1738181091362,7.5925,3095.2,3095.1,4.88e-06]
[1738181091889,7.6,3095.2,3095.1,4.88e-06]
[1738181092176,7.5925,3095.2,3095.1,4.88e-06]
[1738181092349,7.035,3095.2,3095.1,4.88e-06]
[1738181092777,7.035,3095.2,3093.4,0.00996754]
[1738181092778,3.2308,3095.2,3093.6,0.05]
[1738181092999,3.23227,3093.8,3093.7,0.08394345]
[1738181093196,3.23227,3093.8,3093.7,0.03394345]
[1738181093405,3.23362,3092.5,3092.0,3.70005049]
[1738181093601,0.8142,3093.9,3092.0,0.46591049]
[1738181093743,3.23373,3092.4,3092.0,0.46591049]
[1738181093942,3.23356,3092.6,3092.0,0.46591049]
[1738181094195,3.23321,3092.9,3092.0,0.46591049]
[1738181094347,3.23325,3092.9,3092.2,3.23384]
[1738181094539,3.23272,3093.4,3092.0,3.70005049]
[1738181094758,1.67334232,3095.6,3092.0,0.46591049]
[1738181094759,0.8235,3093.5,3092.0,0.46591049]
[1738181094994,3.23404,3092.1,3092.0,0.46591049]
[1738181095302,3.23392,3092.3,3092.0,0.46591049]
[1738181095462,3.23404,3092.1,3092.0,0.46591049]
[1738181095857,0.1,3094.6,3092.0,0.46591049]
[1738181096207,0.16444129,3093.6,3092.0,0.46591049]
[1738181096415,0.16444129,3093.6,3092.1,3.23404]
[1738181096554,0.7994,3094.5,3092.3,0.7895]
[1738181096756,3.23259,3093.5,3092.3,0.7895]
[1738181097056,3.23139,3094.7,3093.2,0.8213]
[1738181097251,3.23196,3094.1,3093.5,3.23249]
[1738181097554,0.7805,3095.0,3093.2,0.8213]
[1738181097555,3.23246,3093.7,3093.2,0.8213]
[1738181097755,3.23112,3094.9,3093.2,0.8213]
[1738181097756,3.23217,3093.9,3093.2,4.05412]
[1738181098063,0.7805,3095.0,3093.2,0.8213]
[1738181098064,3.23259,3093.5,3093.2,0.8213]
[1738181098257,3.23209,3094.0,3093.2,0.8213]
[1738181098457,3.23176,3094.3,3093.7,3.23237]
[1738181098669,3.23135,3094.7,3093.3,0.7935]
[1738181098881,3.23135,3094.7,3094.0,0.7935]
[1738181099082,3.23095,3095.1,3094.4,3.23164]
[1738181099284,3.23095,3095.1,3093.4,0.7564]
[1738181099285,3.23189,3094.2,3093.4,0.7564]
[1738181099470,3.23123,3094.8,3093.5,3.2325]
[1738181099680,3.23164,3094.4,3093.7,3.2323]
[1738181099878,3.23145,3094.6,3093.7,3.55558]
[1738181100081,3.2308,3095.3,3094.4,3.23157]
[1738181100281,2.327,3097.2,3094.7,0.7947]
[1738181100282,0.7571,3096.2,3094.7,0.7947]
[1738181100499,3.2311,3095.0,3094.7,0.7947]
[1738181100698,3.23104,3095.0,3094.7,0.7947]
[1738181101010,3.23104,3095.0,3093.7,0.32323]
[1738181101011,0.7571,3096.2,3094.1,0.8062]
[1738181101168,6.45786,3097.0,3095.8,3.23015]